fUSD/lending_fUSD_20260517
["ID","MTS","AMOUNT","RATE_DAILY","PERIOD"]
[422482127,1778987460000,-344.12979214,0.00036381,2]
[422482121,1778987460000,-300.0,0.00036381,2]
[422482128,1778987460000,-527.12281632,0.00036381,2]
[422482130,1778987460000,-460.44893399,0.00036381,2]
[422482111,1778987460000,-893.8052833,0.00036381,2]
[422482159,1778987460000,-1128.03359875,0.00036381,2]
[422482219,1778987460000,-300.0,0.00036381,2]
[422482160,1778987460000,-568.95771281,0.00036381,2]
[422482191,1778987460000,-300.70672347,0.00036381,2]
[422482195,1778987460000,-300.0,0.00036381,2]
[422482194,1778987460000,-300.0,0.00036381,2]
[422482198,1778987460000,-1913.25849317,0.00036381,2]
[422482196,1778987460000,-949.41386656,0.00036381,2]
[422482202,1778987460000,-1147.71030809,0.00036381,2]
[422482199,1778987460000,-344.12979214,0.00036381,2]
[422482203,1778987460000,-309.72976467,0.00036381,2]
[422482205,1778987460000,-1791.55036629,0.00036381,2]
[422482215,1778987460000,-300.0,0.00036381,2]
[422482216,1778987460000,-300.0,0.00036381,2]
[422482208,1778987460000,-311.04198967,0.00036381,2]
[422482209,1778987460000,-300.0,0.00036381,2]
[422482204,1778987460000,-864.84573435,0.00036381,2]
[422482213,1778987460000,-577.47815809,0.00036381,2]
[422482206,1778987460000,-300.0,0.00036381,2]
[422482210,1778987460000,-300.99518769,0.00036381,2]
[422482211,1778987460000,-464.05309097,0.00036381,2]
[422482207,1778987460000,-476.1253335,0.00036381,2]
[422482214,1778987460000,-452.10208933,0.00036381,2]
[422482212,1778987460000,-300.0,0.00036381,2]
[422482217,1778987460000,-300.0,0.00036381,2]
[422482221,1778987460000,-309.96996065,0.00036381,2]
[422482220,1778987460000,-484.30212364,0.00036381,2]
[422482223,1778987460000,-300.0,0.00036381,2]
[422482222,1778987460000,-300.0,0.00036381,2]
[422482224,1778987460000,-1122.05094903,0.00036381,2]
[422482200,1778987460000,-527.12281632,0.00036381,2]
[422482201,1778987460000,-300.0,0.00036381,2]
[422482218,1778987460000,-300.0,0.00036381,2]
[422482193,1778987460000,-300.0,0.00036381,2]
[422482197,1778987460000,-300.0,0.00036381,2]
[422482162,1778987460000,-358.04676529,0.00036381,2]
[422482165,1778987460000,-497.08449337,0.00036381,2]
[422482169,1778987460000,-300.0,0.00036381,2]
[422482167,1778987460000,-300.0,0.00036381,2]
[422482170,1778987460000,-300.0,0.00036381,2]
[422482172,1778987460000,-300.0,0.00036381,2]
[422482173,1778987460000,-300.0,0.00036381,2]
[422482175,1778987460000,-300.0,0.00036381,2]
[422482171,1778987460000,-304.02041244,0.00036381,2]
[422482176,1778987460000,-492.91797782,0.00036381,2]
[422482177,1778987460000,-334.51679478,0.00036381,2]
[422482168,1778987460000,-300.0,0.00036381,2]
[422482174,1778987460000,-300.0,0.00036381,2]
[422482166,1778987460000,-300.0,0.00036381,2]
[422482180,1778987460000,-377.5804583,0.00036381,2]
[422482178,1778987460000,-300.0,0.00036381,2]
[422482187,1778987460000,-726.3731759,0.00036381,2]
[422482188,1778987460000,-300.0,0.00036381,2]
[422482189,1778987460000,-301.92446648,0.00036381,2]
[422482181,1778987460000,-604.73492277,0.00036381,2]
[422482190,1778987460000,-300.0,0.00036381,2]
[422482183,1778987460000,-300.0,0.00036381,2]
[422482179,1778987460000,-300.0,0.00036381,2]
[422482186,1778987460000,-893.8052833,0.00036381,2]
[422482182,1778987460000,-300.0,0.00036381,2]
[422482192,1778987460000,-300.0,0.00036381,2]
[422482184,1778987460000,-527.9795525,0.00036381,2]
[422482185,1778987460000,-1067.39759447,0.00036381,2]
[422482264,1778987461000,-1511.56573791,0.00036381,2]
[422482255,1778987461000,-949.41386656,0.00036381,2]
[422482265,1778987461000,-300.0,0.00036381,2]
[422482252,1778987461000,-317.91000476,0.00036381,2]
[422482258,1778987461000,-344.12979214,0.00036381,2]
[422482266,1778987461000,-311.04198967,0.00036381,2]
[422482257,1778987461000,-1913.25849317,0.00036381,2]
[422482254,1778987461000,-300.0,0.00036381,2]
[422482259,1778987461000,-527.12281632,0.00036381,2]
[422482262,1778987461000,-309.72976467,0.00036381,2]
[422482256,1778987461000,-300.0,0.00036381,2]
[422482269,1778987461000,-300.0,0.00036381,2]
[422482261,1778987461000,-1147.71030809,0.00036381,2]
[422482260,1778987461000,-369.76155591,0.00036381,2]
[422482267,1778987461000,-300.0,0.00036381,2]
[422482250,1778987461000,-300.70672347,0.00036381,2]
[422482268,1778987461000,-464.05309097,0.00036381,2]
[422482270,1778987461000,-577.47815809,0.00036381,2]
[422482272,1778987461000,-300.0,0.00036381,2]
[422482271,1778987461000,-452.10208933,0.00036381,2]
[422482276,1778987461000,-300.0,0.00036381,2]
[422482274,1778987461000,-300.0,0.00036381,2]
[422482275,1778987461000,-300.0,0.00036381,2]
[422482263,1778987461000,-864.84573435,0.00036381,2]
[422482251,1778987461000,-300.0,0.00036381,2]
[422482246,1778987461000,-726.3731759,0.00036381,2]
[422482253,1778987461000,-300.0,0.00036381,2]
[422482273,1778987461000,-300.0,0.00036381,2]
[422482229,1778987461000,-300.0,0.00036381,2]
[422482228,1778987461000,-300.0,0.00036381,2]
[422482227,1778987461000,-300.0,0.00036381,2]
[422482225,1778987461000,-300.0,0.00036381,2]
[422482226,1778987461000,-1095.24427681,0.00036381,2]
[422482242,1778987461000,-300.0,0.00036381,2]
[422482240,1778987461000,-604.73492277,0.00036381,2]
[422482231,1778987461000,-496.12427771,0.00036381,2]
[422482241,1778987461000,-300.0,0.00036381,2]
[422482236,1778987461000,-300.0,0.00036381,2]
[422482230,1778987461000,-300.0,0.00036381,2]
[422482233,1778987461000,-300.0,0.00036381,2]
[422482232,1778987461000,-300.0,0.00036381,2]
[422482235,1778987461000,-300.0,0.00036381,2]
[422482237,1778987461000,-492.91797782,0.00036381,2]
[422482238,1778987461000,-300.0,0.00036381,2]
[422482239,1778987461000,-300.0,0.00036381,2]
[422482243,1778987461000,-527.9795525,0.00036381,2]
[422482247,1778987461000,-300.0,0.00036381,2]
[422482245,1778987461000,-893.8052833,0.00036381,2]
[422482244,1778987461000,-1067.39759447,0.00036381,2]
[422482248,1778987461000,-301.92446648,0.00036381,2]
[422482249,1778987461000,-300.0,0.00036381,2]
[422482234,1778987461000,-300.0,0.00036381,2]
[422482277,1778987461000,-484.30212364,0.00036381,2]
[422482278,1778987461000,-309.96996065,0.00036381,2]
[422482307,1778987461000,-300.0,0.00036381,2]
[422482303,1778987461000,-300.0,0.00036381,2]
[422482308,1778987461000,-949.41386656,0.00036381,2]
[422482309,1778987461000,-300.0,0.00036381,2]
[422482324,1778987461000,-300.0,0.00036381,2]
[422482313,1778987461000,-1147.71030809,0.00036381,2]
[422482318,1778987461000,-300.0,0.00036381,2]
[422482312,1778987461000,-527.12281632,0.00036381,2]
[422482319,1778987461000,-464.05309097,0.00036381,2]
[422482320,1778987461000,-300.0,0.00036381,2]
[422482317,1778987461000,-311.04198967,0.00036381,2]
[422482323,1778987461000,-300.0,0.00036381,2]
[422482315,1778987461000,-864.84573435,0.00036381,2]
[422482316,1778987461000,-300.0,0.00036381,2]
[422482321,1778987461000,-577.47815809,0.00036381,2]
[422482322,1778987461000,-452.10208933,0.00036381,2]
[422482326,1778987461000,-463.19898361,0.00036381,2]
[422482325,1778987461000,-300.0,0.00036381,2]
[422482327,1778987461000,-300.0,0.00036381,2]
[422482328,1778987461000,-484.30212364,0.00036381,2]
[422482330,1778987461000,-300.0,0.00036381,2]
[422482329,1778987461000,-309.96996065,0.00036381,2]
[422482280,1778987461000,-300.0,0.00036381,2]
[422482306,1778987461000,-515.18999599,0.00036381,2]
[422482305,1778987461000,-300.0,0.00036381,2]
[422482314,1778987461000,-309.72976467,0.00036381,2]
[422482302,1778987461000,-301.92446648,0.00036381,2]
[422482279,1778987461000,-300.0,0.00036381,2]
[422482304,1778987461000,-300.70672347,0.00036381,2]
[422482281,1778987461000,-300.0,0.00036381,2]
[422482283,1778987461000,-1095.24427681,0.00036381,2]
[422482282,1778987461000,-441.42473792,0.00036381,2]
[422482284,1778987461000,-300.0,0.00036381,2]
[422482286,1778987461000,-300.0,0.00036381,2]
[422482285,1778987461000,-300.0,0.00036381,2]
[422482288,1778987461000,-300.0,0.00036381,2]
[422482293,1778987461000,-300.0,0.00036381,2]
[422482289,1778987461000,-300.0,0.00036381,2]
[422482296,1778987461000,-300.0,0.00036381,2]
[422482287,1778987461000,-370.71883626,0.00036381,2]
[422482290,1778987461000,-300.0,0.00036381,2]
[422482299,1778987461000,-893.8052833,0.00036381,2]
[422482311,1778987461000,-344.12979214,0.00036381,2]
[422482300,1778987461000,-726.3731759,0.00036381,2]
[422482301,1778987461000,-300.0,0.00036381,2]
[422482298,1778987461000,-1067.39759447,0.00036381,2]
[422482310,1778987461000,-1913.25849317,0.00036381,2]
[422482295,1778987461000,-300.0,0.00036381,2]
[422482291,1778987461000,-492.91797782,0.00036381,2]
[422482292,1778987461000,-300.0,0.00036381,2]
[422482294,1778987461000,-604.73492277,0.00036381,2]
[422482297,1778987461000,-527.9795525,0.00036381,2]
[422482375,1778987462000,-1270.0,0.00036997,2]
[422482372,1778987462000,-8364.0214,0.00036886,2]
[422482365,1778987462000,-152.84,0.0003669,30]
[422482370,1778987462000,-5634.40711717,0.0003686,2]
[422482371,1778987462000,-2166.2724,0.00036886,2]
[422482369,1778987462000,-350.0,0.00036849,5]
[422482366,1778987462000,-536.0,0.00036748,12]
[422482368,1778987462000,-669.56012685,0.0003684,2]
[422482373,1778987462000,-3440.2693,0.00036886,2]
[422482364,1778987462000,-151.32304821,0.0003669,2]
[422482377,1778987462000,-6055.0,0.00036997,2]
[422482367,1778987462000,-1639.06764347,0.000368,2]
[422482374,1778987462000,-293.4,0.000369,120]
[422482387,1778987462000,-500.0,0.00037,7]
[422482376,1778987462000,-1223.0,0.00036997,2]
[422482386,1778987462000,-500.0,0.00037,7]
[422482378,1778987462000,-417.0,0.00036997,2]
[422482380,1778987462000,-500.0,0.00037,7]
[422482382,1778987462000,-500.0,0.00037,7]
[422482383,1778987462000,-500.0,0.00037,7]
[422482379,1778987462000,-500.0,0.00037,7]
[422482381,1778987462000,-500.0,0.00037,7]
[422482384,1778987462000,-500.0,0.00037,7]
[422482392,1778987462000,-500.0,0.00037,7]
[422482391,1778987462000,-500.0,0.00037,7]
[422482389,1778987462000,-500.0,0.00037,7]
[422482363,1778987462000,-8131.66765855,0.000365,10]
[422482385,1778987462000,-500.0,0.00037,7]
[422482362,1778987462000,-167.385,0.00036417,32]
[422482333,1778987462000,-1095.24427681,0.00036381,2]
[422482359,1778987462000,-344.12979214,0.00036381,2]
[422482336,1778987462000,-300.0,0.00036381,2]
[422482335,1778987462000,-300.0,0.00036381,2]
[422482332,1778987462000,-300.0,0.00036381,2]
[422482334,1778987462000,-300.0,0.00036381,2]
[422482331,1778987462000,-300.0,0.00036381,2]
[422482337,1778987462000,-550.80878657,0.00036381,2]
[422482338,1778987462000,-300.0,0.00036381,2]
[422482339,1778987462000,-468.84259228,0.00036381,2]
[422482341,1778987462000,-300.0,0.00036381,2]
[422482344,1778987462000,-395.82293386,0.00036381,2]
[422482348,1778987462000,-893.8052833,0.00036381,2]
[422482340,1778987462000,-492.91797782,0.00036381,2]
[422482342,1778987462000,-300.0,0.00036381,2]
[422482357,1778987462000,-300.0,0.00036381,2]
[422482343,1778987462000,-604.73492277,0.00036381,2]
[422482346,1778987462000,-527.9795525,0.00036381,2]
[422482347,1778987462000,-1067.39759447,0.00036381,2]
[422482350,1778987462000,-726.3731759,0.00036381,2]
[422482360,1778987462000,-527.12281632,0.00036381,2]
[422482361,1778987462000,-1407.0,0.000364,30]
[422482349,1778987462000,-436.04419855,0.00036381,2]
[422482358,1778987462000,-1913.25849317,0.00036381,2]
[422482354,1778987462000,-300.0,0.00036381,2]
[422482390,1778987462000,-500.0,0.00037,7]
[422482351,1778987462000,-301.92446648,0.00036381,2]
[422482352,1778987462000,-300.0,0.00036381,2]
[422482356,1778987462000,-949.41386656,0.00036381,2]
[422482355,1778987462000,-300.0,0.00036381,2]
[422482345,1778987462000,-300.0,0.00036381,2]
[422482388,1778987462000,-500.0,0.00037,7]
[422482353,1778987462000,-300.70672347,0.00036381,2]
[422482396,1778987462000,-8364.0214,0.00037017,2]
[422482425,1778987462000,-1000.0,0.0003744,60]
[422482427,1778987462000,-167.385,0.00037461,37]
[422482424,1778987462000,-3440.2693,0.00037413,2]
[422482432,1778987462000,-15008.7107,0.00037556,30]
[422482426,1778987462000,-152.84,0.0003745,60]
[422482431,1778987462000,-3440.2693,0.00037544,2]
[422482430,1778987462000,-8364.0214,0.00037544,2]
[422482429,1778987462000,-1572.578401,0.000375,26]
[422482428,1778987462000,-1000.0,0.00037461,60]
[422482439,1778987462000,-400.0,0.00037615,2]
[422482437,1778987462000,-1000.0,0.00037615,2]
[422482438,1778987462000,-1000.0,0.00037615,2]
[422482443,1778987462000,-150.0,0.00037694,2]
[422482422,1778987462000,-1000.0,0.0003739,60]
[422482436,1778987462000,-1407.0,0.000376,30]
[422482448,1778987462000,-1135.0,0.000378,7]
[422482441,1778987462000,-8364.0214,0.00037676,2]
[422482445,1778987462000,-1000.0,0.00037738,60]
[422482447,1778987462000,-1000.0,0.00037786,60]
[422482444,1778987462000,-1000.0,0.00037703,60]
[422482449,1778987462000,-1000.0,0.000378,7]
[422482442,1778987462000,-3440.2693,0.00037676,2]
[422482446,1778987462000,-303.5288317,0.00037753,120]
[422482452,1778987462000,-8364.0214,0.00037808,2]
[422482453,1778987462000,-3440.2693,0.00037808,2]
[422482450,1778987462000,-1000.0,0.000378,7]
[422482454,1778987462000,-350.0,0.00037808,5]
[422482394,1778987462000,-451.51,0.00037,7]
[422482440,1778987462000,-400.0,0.00037615,2]
[422482435,1778987462000,-4411.28004785,0.0003759,2]
[422482451,1778987462000,-2166.2724,0.00037808,2]
[422482433,1778987462000,-2166.2724,0.00037577,2]
[422482434,1778987462000,-239.74,0.00037582,30]
[422482393,1778987462000,-500.0,0.00037,7]
[422482395,1778987462000,-160.0,0.00037,120]
[422482399,1778987462000,-1202.09895718,0.00037046,2]
[422482398,1778987462000,-1416.10821548,0.00037038,7]
[422482406,1778987462000,-3440.2693,0.00037149,2]
[422482403,1778987462000,-200.0,0.000371,10]
[422482400,1778987462000,-1213.44829997,0.00037046,7]
[422482407,1778987462000,-167.385,0.000372,36]
[422482401,1778987462000,-73981.71208757,0.000371,2]
[422482402,1778987462000,-167.385,0.000371,35]
[422482404,1778987462000,-2166.2724,0.00037116,2]
[422482409,1778987462000,-152.0,0.00037238,7]
[422482410,1778987462000,-1000.0,0.00037246,60]
[422482397,1778987462000,-3440.2693,0.00037017,2]
[422482408,1778987462000,-300.0,0.000372,10]
[422482420,1778987462000,-1000.0,0.00037337,60]
[422482423,1778987462000,-8364.0214,0.00037413,2]
[422482419,1778987462000,-1000.0,0.00037304,60]
[422482418,1778987462000,-536.0,0.00037282,13]
[422482405,1778987462000,-8364.0214,0.00037149,2]
[422482417,1778987462000,-3440.2693,0.00037281,2]
[422482416,1778987462000,-8364.0214,0.00037281,2]
[422482412,1778987462000,-227.999123,0.00037281,7]
[422482413,1778987462000,-227.999123,0.00037281,7]
[422482414,1778987462000,-227.999123,0.00037281,7]
[422482415,1778987462000,-227.999118,0.00037281,7]
[422482411,1778987462000,-165.612933,0.00037281,7]
[422482421,1778987462000,-2166.2724,0.00037347,2]
[422482494,1778987463000,-1500.0,0.00038,26]
[422482501,1778987463000,-193.89311,0.00038,7]
[422482499,1778987463000,-448.436507,0.00038,7]
[422482500,1778987463000,-193.89311,0.00038,7]
[422482484,1778987463000,-2294.9737345,0.00038,2]
[422482489,1778987463000,-3033.62237945,0.00038,2]
[422482487,1778987463000,-1075.05,0.00038,30]
[422482488,1778987463000,-160.0,0.00038,120]
[422482485,1778987463000,-27924.00395648,0.00038,2]
[422482486,1778987463000,-442.38,0.00038,30]
[422482492,1778987463000,-194.168,0.00038,37]
[422482496,1778987463000,-448.43651,0.00038,7]
[422482502,1778987463000,-151.0,0.00038,7]
[422482495,1778987463000,-200.0,0.00038,15]
[422482498,1778987463000,-448.43651,0.00038,7]
[422482503,1778987463000,-151.0,0.00038,7]
[422482493,1778987463000,-2623.54300841,0.00038,2]
[422482504,1778987463000,-2166.2724,0.00038038,2]
[422482506,1778987463000,-8364.0214,0.00038071,2]
[422482516,1778987463000,-1280.8290956,0.000382,30]
[422482517,1778987463000,-1280.8290956,0.000382,30]
[422482508,1778987463000,-9368.3861182,0.000381,33]
[422482518,1778987463000,-8364.0214,0.00038203,2]
[422482483,1778987463000,-150.0,0.00038,2]
[422482507,1778987463000,-3440.2693,0.00038071,2]
[422482497,1778987463000,-448.43651,0.00038,7]
[422482482,1778987463000,-17342.44378636,0.00038,2]
[422482471,1778987463000,-342.0,0.00038,30]
[422482480,1778987463000,-3316.11994332,0.00038,2]
[422482505,1778987463000,-153.56,0.00038043,60]
[422482463,1778987463000,-1000.0,0.00037936,60]
[422482456,1778987463000,-536.0,0.00037816,13]
[422482459,1778987463000,-387.02577345,0.00037876,2]
[422482462,1778987463000,-293.4,0.000379,120]
[422482460,1778987463000,-205.75752157,0.0003788,2]
[422482461,1778987463000,-1000.0,0.00037892,60]
[422482455,1778987463000,-639.70522509,0.0003781,60]
[422482457,1778987463000,-669.56012685,0.0003784,2]
[422482458,1778987463000,-1000.0,0.0003787,60]
[422482464,1778987463000,-8364.0214,0.0003794,2]
[422482468,1778987463000,-1000.0,0.00037951,60]
[422482491,1778987463000,-194.168,0.00038,37]
[422482465,1778987463000,-1000.0,0.0003794,60]
[422482469,1778987463000,-210743.29952755,0.00038,2]
[422482470,1778987463000,-1560.20392472,0.00038,2]
[422482467,1778987463000,-1000.0,0.00037943,60]
[422482476,1778987463000,-174.24577485,0.00038,2]
[422482474,1778987463000,-1500.0,0.00038,5]
[422482473,1778987463000,-153.0,0.00038,120]
[422482477,1778987463000,-285.693069,0.00038,39]
[422482472,1778987463000,-323.32,0.00038,15]
[422482479,1778987463000,-150.0,0.00038,2]
[422482478,1778987463000,-168.93,0.00038,5]
[422482481,1778987463000,-150.0,0.00038,2]
[422482490,1778987463000,-2326.14038709,0.00038,2]
[422482466,1778987463000,-3440.2693,0.0003794,2]
[422482510,1778987463000,-713.7,0.00038125,30]
[422482475,1778987463000,-151.0,0.00038,120]
[422482512,1778987463000,-210.95,0.00038172,14]
[422482548,1778987463000,-213.0,0.00038356,2]
[422482550,1778987463000,-450.0,0.00038356,2]
[422482545,1778987463000,-888.0,0.00038356,2]
[422482547,1778987463000,-250.0,0.00038356,2]
[422482546,1778987463000,-250.0,0.00038356,2]
[422482544,1778987463000,-950.0,0.00038356,2]
[422482549,1778987463000,-450.0,0.00038356,2]
[422482554,1778987463000,-500.0,0.00038376,120]
[422482570,1778987463000,-153.56,0.00038443,120]
[422482552,1778987463000,-373.0,0.00038356,120]
[422482553,1778987463000,-188.0271109,0.00038376,120]
[422482551,1778987463000,-411.0,0.00038356,2]
[422482555,1778987463000,-500.0,0.00038376,120]
[422482557,1778987463000,-500.0,0.00038376,120]
[422482556,1778987463000,-500.0,0.00038376,120]
[422482558,1778987463000,-500.0,0.00038376,120]
[422482560,1778987463000,-500.0,0.00038376,120]
[422482559,1778987463000,-500.0,0.00038376,120]
[422482562,1778987463000,-500.0,0.00038376,120]
[422482561,1778987463000,-500.0,0.00038376,120]
[422482564,1778987463000,-500.0,0.00038376,120]
[422482563,1778987463000,-500.0,0.00038376,120]
[422482566,1778987463000,-500.0,0.00038376,120]
[422482565,1778987463000,-500.0,0.00038376,120]
[422482569,1778987463000,-153.0,0.000384,120]
[422482511,1778987463000,-153.56,0.00038143,60]
[422482567,1778987463000,-500.0,0.00038376,120]
[422482538,1778987463000,-536.0,0.0003835,14]
[422482568,1778987463000,-537.598746,0.00038376,120]
[422482540,1778987463000,-626.0,0.00038356,2]
[422482539,1778987463000,-531.18858749,0.00038356,60]
[422482515,1778987463000,-1280.82909561,0.000382,30]
[422482514,1778987463000,-203.097111,0.000382,40]
[422482509,1778987463000,-239.04488774,0.000381,33]
[422482520,1778987463000,-152.84,0.0003822,93]
[422482530,1778987463000,-300.0,0.00038299,2]
[422482521,1778987463000,-153.56,0.00038243,60]
[422482519,1778987463000,-3440.2693,0.00038203,2]
[422482522,1778987463000,-2166.2724,0.00038269,2]
[422482524,1778987463000,-389.77,0.00038276,60]
[422482523,1778987463000,-4986.06,0.00038276,60]
[422482526,1778987463000,-2983.8,0.00038276,60]
[422482529,1778987463000,-300.0,0.00038299,2]
[422482513,1778987463000,-210.95,0.00038172,14]
[422482525,1778987463000,-1353.47,0.00038276,60]
[422482528,1778987463000,-300.0,0.00038299,2]
[422482532,1778987463000,-300.0,0.00038299,2]
[422482534,1778987463000,-8364.0214,0.00038335,2]
[422482542,1778987463000,-398.0,0.00038356,2]
[422482543,1778987463000,-950.0,0.00038356,2]
[422482533,1778987463000,-309.34,0.00038299,2]
[422482531,1778987463000,-300.0,0.00038299,2]
[422482535,1778987463000,-3440.2693,0.00038335,2]
[422482537,1778987463000,-153.56,0.00038343,60]
[422482536,1778987463000,-439.29,0.0003834,10]
[422482541,1778987463000,-250.0,0.00038356,2]
[422482527,1778987463000,-300.0,0.00038299,2]
[422482613,1778987464000,-200.0,0.0003875,2]
[422482610,1778987464000,-200.0,0.0003875,2]
[422482605,1778987464000,-200.0,0.0003875,2]
[422482602,1778987464000,-200.0,0.0003875,2]
[422482614,1778987464000,-200.0,0.0003875,2]
[422482603,1778987464000,-200.0,0.0003875,2]
[422482604,1778987464000,-157.0,0.0003875,2]
[422482598,1778987464000,-200.0,0.0003875,2]
[422482601,1778987464000,-200.0,0.0003875,2]
[422482607,1778987464000,-200.0,0.0003875,2]
[422482606,1778987464000,-200.0,0.0003875,2]
[422482615,1778987464000,-200.0,0.0003875,2]
[422482608,1778987464000,-200.0,0.0003875,2]
[422482609,1778987464000,-200.0,0.0003875,2]
[422482611,1778987464000,-200.0,0.0003875,2]
[422482616,1778987464000,-200.0,0.0003875,2]
[422482626,1778987464000,-200.0,0.0003875,2]
[422482627,1778987464000,-202.0,0.0003875,2]
[422482618,1778987464000,-200.0,0.0003875,2]
[422482620,1778987464000,-200.0,0.0003875,2]
[422482621,1778987464000,-200.0,0.0003875,2]
[422482600,1778987464000,-200.0,0.0003875,2]
[422482617,1778987464000,-200.0,0.0003875,2]
[422482612,1778987464000,-200.0,0.0003875,2]
[422482596,1778987464000,-200.0,0.0003875,2]
[422482581,1778987464000,-2166.2732,0.0003873,2]
[422482597,1778987464000,-200.0,0.0003875,2]
[422482622,1778987464000,-200.0,0.0003875,2]
[422482572,1778987464000,-3440.2693,0.00038467,2]
[422482571,1778987464000,-8364.0214,0.00038467,2]
[422482573,1778987464000,-211.63936498,0.0003847,2]
[422482574,1778987464000,-2166.2724,0.00038499,2]
[422482575,1778987464000,-82518.2146971,0.000385,2]
[422482576,1778987464000,-167.355,0.00038504,42]
[422482577,1778987464000,-153.56,0.00038543,120]
[422482578,1778987464000,-8364.0214,0.00038598,2]
[422482580,1778987464000,-153.56,0.00038643,120]
[422482591,1778987464000,-200.0,0.0003875,2]
[422482579,1778987464000,-3440.2693,0.00038598,2]
[422482590,1778987464000,-200.0,0.0003875,2]
[422482583,1778987464000,-3440.2701,0.0003873,2]
[422482582,1778987464000,-8364.0228,0.0003873,2]
[422482589,1778987464000,-200.0,0.0003875,2]
[422482588,1778987464000,-200.0,0.0003875,2]
[422482585,1778987464000,-152.0,0.0003874,8]
[422482584,1778987464000,-163.0,0.00038734,11]
[422482587,1778987464000,-200.0,0.0003875,2]
[422482586,1778987464000,-153.56,0.00038743,120]
[422482592,1778987464000,-200.0,0.0003875,2]
[422482594,1778987464000,-200.0,0.0003875,2]
[422482593,1778987464000,-200.0,0.0003875,2]
[422482595,1778987464000,-200.0,0.0003875,2]
[422482599,1778987464000,-200.0,0.0003875,2]
[422482619,1778987464000,-200.0,0.0003875,2]
[422482637,1778987464000,-200.0,0.0003875,2]
[422482624,1778987464000,-200.0,0.0003875,2]
[422482656,1778987464000,-153.0,0.000389,120]
[422482659,1778987464000,-157.97169974,0.00038937,2]
[422482654,1778987464000,-292.7,0.000389,120]
[422482657,1778987464000,-2000.0,0.000389,7]
[422482658,1778987464000,-166.40847038,0.00038937,2]
[422482662,1778987464000,-158.95264815,0.00038948,2]
[422482661,1778987464000,-153.69789664,0.00038943,120]
[422482660,1778987464000,-156.53707268,0.0003894,2]
[422482664,1778987464000,-152.84,0.0003899,113]
[422482663,1778987464000,-225.67385678,0.00038951,2]
[422482667,1778987464000,-3543.0,0.00038994,2]
[422482666,1778987464000,-625.0,0.00038994,2]
[422482668,1778987464000,-31314.79498176,0.00039,2]
[422482623,1778987464000,-200.0,0.0003875,2]
[422482677,1778987464000,-2313.0,0.00039013,11]
[422482673,1778987464000,-173.0,0.00039,30]
[422482676,1778987464000,-975.85,0.00039,30]
[422482679,1778987464000,-2313.0,0.00039033,11]
[422482672,1778987464000,-342.0,0.00039,30]
[422482669,1778987464000,-158.0,0.00039,120]
[422482670,1778987464000,-167.66482057,0.00039,5]
[422482678,1778987464000,-163.0,0.00039033,11]
[422482671,1778987464000,-200.0,0.00039,16]
[422482680,1778987464000,-2339.1459,0.00039076,30]
[422482674,1778987464000,-285.693068,0.00039,44]
[422482665,1778987464000,-1354.0,0.00038994,2]
[422482675,1778987464000,-2639.5040318,0.00039,3]
[422482648,1778987464000,-877.4772,0.00038841,30]
[422482655,1778987464000,-334.5992,0.000389,60]
[422482625,1778987464000,-200.0,0.0003875,2]